fUST/lending_fUST_20240916
["ID","MTS","AMOUNT","RATE_DAILY","PERIOD"]
[338317490,1726494643601,-500.0,0.00019178,2]
[338317491,1726494643610,-607.08,0.00019178,2]
[338317492,1726494643619,-694.2,0.00019178,2]
[338317493,1726494643629,-184.929598,0.00019178,2]
[338317494,1726494643638,-500.0,0.00019178,2]
[338317495,1726494643647,-683.89,0.00019178,2]
[338317496,1726494643657,-184.929598,0.00019178,2]
[338317497,1726494643666,-184.929598,0.00019178,2]
[338317498,1726494643676,-500.0,0.00019178,2]
[338317499,1726494643685,-500.0,0.00019178,2]
[338317500,1726494643694,-184.929598,0.00019178,2]
[338317501,1726494643704,-184.929598,0.00019178,2]
[338317502,1726494643713,-500.0,0.00019178,2]
[338317503,1726494643722,-184.929598,0.00019178,2]
[338317504,1726494643732,-500.0,0.00019178,2]
[338317505,1726494643742,-2686.11,0.00019178,2]
[338317506,1726494643751,-500.0,0.00019178,2]
[338317507,1726494643760,-500.0,0.00019178,2]
[338317508,1726494643769,-672.03,0.00019178,2]
[338317509,1726494643779,-500.0,0.00019178,2]
[338317510,1726494643789,-500.0,0.00019178,2]
[338317511,1726494643798,-500.0,0.00019178,2]
[338317513,1726494643808,-500.0,0.00019178,2]
[338317515,1726494643817,-500.0,0.00019178,2]
[338317516,1726494643827,-2123.27,0.00019178,2]
[338317517,1726494643836,-500.0,0.00019178,2]
[338317518,1726494643846,-312.64212075,0.00019178,2]
[338317519,1726494643856,-2260.17,0.00019178,2]
[338317520,1726494643866,-500.0,0.00019178,2]
[338317521,1726494643875,-508.53643356,0.00019178,2]
[338317522,1726494643885,-1751.79,0.00019178,2]
[338317523,1726494643894,-500.0,0.00019178,2]
[338317524,1726494643904,-500.0,0.00019178,2]
[338317525,1726494643913,-500.0,0.00019178,2]
[338317526,1726494643923,-151.0,0.00019178,2]
[338317527,1726494643932,-509.28525534,0.00019178,2]
[338317528,1726494643941,-289.28773159,0.00019178,2]
[338317529,1726494643951,-308.40450288,0.00019178,2]
[338317530,1726494643960,-151.0,0.00019178,2]
[338317531,1726494643969,-151.0,0.00019178,2]
[338317532,1726494644138,-501.90724798,0.00019178,2]
[338317533,1726494644148,-598.94,0.00019178,2]
[338317534,1726494644158,-500.0,0.00019178,2]
[338317535,1726494644168,-500.0,0.00019178,2]
[338317536,1726494644178,-500.0,0.00019178,2]
[338317537,1726494644187,-500.0,0.00019178,2]
[338317538,1726494644196,-500.58848827,0.00019178,2]
[338317539,1726494644206,-500.0,0.00019178,2]
[338317540,1726494644215,-500.0,0.00019178,2]
[338317541,1726494644225,-500.72930063,0.00019178,2]
[338317542,1726494644235,-1774.62,0.00019178,2]
[338317543,1726494644245,-500.0,0.00019178,2]
[338317544,1726494644255,-500.0,0.00019178,2]
[338317545,1726494644264,-1132.66,0.00019178,2]
[338317546,1726494644273,-500.0,0.00019178,2]
[338317547,1726494644282,-2032.73,0.00019178,2]
[338317548,1726494644291,-500.0,0.00019178,2]
[338317549,1726494644300,-502.38868248,0.00019178,2]
[338317550,1726494644310,-326.56514863,0.00019178,2]
[338317551,1726494644320,-2082.9,0.00019178,2]
[338317552,1726494644329,-500.0,0.00019178,2]
[338317553,1726494644339,-1380.5,0.00019178,2]
[338317554,1726494644348,-989.9,0.00019178,2]
[338317555,1726494644357,-500.0,0.00019178,2]
[338317556,1726494644367,-554.76012241,0.00019178,2]
[338317557,1726494644377,-500.0,0.00019178,2]
[338317558,1726494644385,-500.82160215,0.00019178,2]
[338317559,1726494644395,-810.67,0.00019178,2]
[338317560,1726494644404,-880.86,0.00019178,2]
[338317561,1726494644413,-500.0,0.00019178,2]
[338317562,1726494644422,-1080.8,0.00019178,2]
[338317563,1726494644431,-630.27,0.00019178,2]
[338317564,1726494644441,-500.0,0.00019178,2]
[338317565,1726494644450,-500.0,0.00019178,2]
[338317566,1726494644459,-500.0,0.00019178,2]
[338317567,1726494644468,-502.26477878,0.00019178,2]
[338317568,1726494644478,-1885.06,0.00019178,2]
[338317569,1726494644487,-500.0,0.00019178,2]
[338317570,1726494644496,-500.0,0.00019178,2]
[338317571,1726494644506,-500.0,0.00019178,2]
[338317572,1726494644515,-500.0,0.00019178,2]
[338317573,1726494644524,-727.56,0.00019178,2]
[338317574,1726494644534,-505.45,0.00019178,2]
[338317575,1726494644543,-537.69,0.00019178,2]
[338317576,1726494644553,-3788.11,0.00019178,2]
[338317577,1726494644564,-696.39,0.00019178,2]
[338317578,1726494644573,-500.0,0.00019178,2]
[338317579,1726494644582,-1788.23,0.00019178,2]
[338317580,1726494644593,-550.24,0.00019178,2]
[338317581,1726494644602,-588.73,0.00019178,2]
[338317582,1726494644611,-500.0,0.00019178,2]
[338317583,1726494644620,-500.0,0.00019178,2]
[338317584,1726494644629,-500.0,0.00019178,2]
[338317585,1726494644638,-500.0,0.00019178,2]
[338317586,1726494644647,-901.95,0.00019178,2]
[338317587,1726494644657,-500.0,0.00019178,2]
[338317588,1726494644666,-500.0,0.00019178,2]
[338317589,1726494644675,-500.0,0.00019178,2]
[338317590,1726494644685,-500.0,0.00019178,2]
[338317591,1726494644694,-500.99431131,0.00019178,2]
[338317592,1726494644703,-151.0,0.00019178,2]
[338317593,1726494644713,-1566.23,0.00019178,2]
[338317594,1726494644723,-151.0,0.00019178,2]
[338317595,1726494644732,-151.0,0.00019178,2]
[338317596,1726494644741,-500.0,0.00019178,2]
[338317597,1726494644750,-184.0074633,0.00019178,2]
[338317598,1726494644759,-500.0,0.00019178,2]
[338317599,1726494644769,-500.0,0.00019178,2]
[338317600,1726494644778,-500.0,0.00019178,2]
[338317601,1726494644788,-151.0,0.00019178,2]
[338317602,1726494644797,-151.0,0.00019178,2]
[338317603,1726494644808,-151.0,0.00019178,2]
[338317604,1726494644817,-151.0,0.00019178,2]
[338317605,1726494644827,-151.0,0.00019178,2]
[338317606,1726494644837,-500.0,0.00019178,2]
[338317607,1726494644846,-151.0,0.00019178,2]
[338317608,1726494644856,-500.0,0.00019178,2]
[338317609,1726494644865,-905.82,0.00019178,2]
[338317610,1726494644874,-500.0,0.00019178,2]
[338317611,1726494644884,-1442.42,0.00019178,2]
[338317612,1726494644894,-501.78433949,0.00019178,2]
[338317613,1726494644903,-500.0,0.00019178,2]
[338317614,1726494644912,-503.59430299,0.00019178,2]
[338317615,1726494644922,-662.72,0.00019178,2]
[338317616,1726494644931,-2342.51,0.00019178,2]
[338317617,1726494644940,-501.46842707,0.00019178,2]
[338317618,1726494644949,-500.0,0.00019178,2]
[338317619,1726494644958,-500.0,0.00019178,2]
[338317620,1726494644967,-500.0,0.00019178,2]
[338317621,1726494644977,-909.43,0.00019178,2]
[338317622,1726494644986,-500.0,0.00019178,2]
[338317623,1726494644995,-733.24,0.00019178,2]
[338317624,1726494645005,-503.07155753,0.00019178,2]
[338317625,1726494645014,-500.0,0.00019178,2]
[338317626,1726494645024,-500.0,0.00019178,2]
[338317627,1726494645033,-500.0,0.00019178,2]
[338317628,1726494645042,-528.55,0.00019178,2]
[338317629,1726494645052,-513.56267429,0.00019178,2]
[338317630,1726494645062,-1147.08,0.00019178,2]
[338317631,1726494645071,-500.0,0.00019178,2]
[338317632,1726494645081,-151.0,0.00019178,2]
[338317633,1726494645090,-151.0,0.00019178,2]
[338317634,1726494645099,-151.0,0.00019178,2]
[338317635,1726494645110,-785.19,0.00019178,2]
[338317636,1726494645120,-500.0,0.00019178,2]
[338317637,1726494645129,-500.0,0.00019178,2]
[338317638,1726494645139,-500.0,0.00019178,2]
[338317639,1726494645148,-500.0,0.00019178,2]
[338317640,1726494645158,-2229.44,0.00019178,2]
[338317641,1726494645168,-500.0,0.00019178,2]
[338317642,1726494645178,-500.0,0.00019178,2]
[338317643,1726494645187,-500.0,0.00019178,2]
[338317644,1726494645196,-499.99667973,0.00019178,2]
[338317645,1726494645206,-812.85,0.00019178,2]
[338317646,1726494645215,-500.0,0.00019178,2]
[338317647,1726494645224,-500.0,0.00019178,2]
[338317648,1726494645234,-2643.65,0.00019178,2]
[338317649,1726494645243,-500.0,0.00019178,2]
[338317650,1726494645252,-500.0,0.00019178,2]
[338317651,1726494645261,-500.0,0.00019178,2]
[338317652,1726494645271,-500.0,0.00019178,2]
[338317653,1726494645280,-500.0,0.00019178,2]
[338317654,1726494645290,-1597.65,0.00019178,2]
[338317655,1726494645299,-500.0,0.00019178,2]
[338317656,1726494645310,-500.79444486,0.00019178,2]
[338317657,1726494645319,-500.0,0.00019178,2]
[338317658,1726494645329,-500.0,0.00019178,2]
[338317659,1726494645339,-500.0,0.00019178,2]
[338317660,1726494645350,-500.0,0.00019178,2]
[338317661,1726494645360,-626.63,0.00019178,2]
[338317662,1726494645370,-500.0,0.00019178,2]
[338317663,1726494645379,-676.55,0.00019178,2]
[338317664,1726494645389,-4082.47,0.00019178,2]
[338317665,1726494645399,-973.98,0.00019178,2]
[338317666,1726494645408,-780.31,0.00019178,2]
[338317667,1726494645418,-500.0,0.00019178,2]
[338317668,1726494645428,-500.0,0.00019178,2]
[338317669,1726494645437,-500.0,0.00019178,2]
[338317670,1726494645446,-1704.11,0.00019178,2]
[338317671,1726494645455,-500.0,0.00019178,2]
[338317672,1726494645465,-757.99,0.00019178,2]
[338317673,1726494645474,-841.4,0.00019178,2]
[338317674,1726494645483,-497.80885397,0.00019178,2]
[338317675,1726494645493,-500.0,0.00019178,2]
[338317676,1726494645503,-746.96,0.00019178,2]
[338317677,1726494645513,-3971.32,0.00019178,2]
[338317678,1726494645523,-583.0,0.00019178,2]
[338317679,1726494645533,-500.0,0.00019178,2]
[338317680,1726494645543,-230.218836,0.00019178,2]
[338317681,1726494645552,-580.62,0.00019178,2]
[338317682,1726494645563,-500.0,0.00019178,2]
[338317683,1726494645573,-500.0,0.00019178,2]
[338317684,1726494645583,-500.0,0.00019178,2]
[338317685,1726494645593,-500.0,0.00019178,2]
[338317686,1726494645602,-500.0,0.00019178,2]
[338317687,1726494645613,-500.0,0.00019178,2]
[338317688,1726494645623,-500.0,0.00019178,2]
[338317689,1726494645633,-500.0,0.00019178,2]
[338317690,1726494645643,-500.0,0.00019178,2]
[338317691,1726494645652,-557.58,0.00019178,2]
[338317692,1726494645662,-500.0,0.00019178,2]
[338317693,1726494645672,-500.0,0.00019178,2]
[338317694,1726494645681,-500.0,0.00019178,2]
[338317695,1726494645692,-500.0,0.00019178,2]
[338317696,1726494645701,-914.01,0.00019178,2]
[338317697,1726494645711,-486.52617462,0.00019178,2]
[338317698,1726494645720,-500.0,0.00019178,2]
[338317699,1726494645730,-500.0,0.00019178,2]
[338317700,1726494645739,-500.0,0.00019178,2]
[338317701,1726494645749,-500.0,0.00019178,2]
[338317702,1726494645759,-739.37,0.00019178,2]
[338317703,1726494645769,-500.0,0.00019178,2]
[338317704,1726494645778,-3479.2,0.00019178,2]
[338317705,1726494645787,-151.0,0.00019178,2]
[338317706,1726494645796,-151.0,0.00019178,2]
[338317708,1726494645806,-151.0,0.00019178,2]
[338317710,1726494645821,-500.0,0.00019178,2]
[338317712,1726494645830,-672.26,0.00019178,2]
[338317714,1726494645839,-500.0,0.00019178,2]
[338317716,1726494645848,-500.0,0.00019178,2]
[338317717,1726494645858,-500.0,0.00019178,2]
[338317718,1726494645867,-500.0,0.00019178,2]
[338317720,1726494645876,-500.0,0.00019178,2]
[338317722,1726494645886,-1314.98,0.00019178,2]
[338317724,1726494645895,-500.0,0.00019178,2]
[338317726,1726494645904,-500.0,0.00019178,2]
[338317728,1726494645914,-1000.17,0.00019178,2]
[338317730,1726494645923,-500.0,0.00019178,2]
[338317732,1726494645932,-746.19,0.00019178,2]
[338317734,1726494645941,-1665.86,0.00019178,2]
[338317736,1726494645950,-500.0,0.00019178,2]
[338317738,1726494645960,-500.0,0.00019178,2]
[338317740,1726494645969,-500.0,0.00019178,2]
[338317742,1726494645979,-500.0,0.00019178,2]
[338317744,1726494645988,-500.0,0.00019178,2]
[338317746,1726494645997,-500.0,0.00019178,2]
[338317748,1726494646006,-599.45,0.00019178,2]
[338317750,1726494646015,-500.0,0.00019178,2]
[338317752,1726494646025,-500.0,0.00019178,2]
[338317754,1726494646034,-151.0,0.00019178,2]
[338317756,1726494646044,-500.0,0.00019178,2]
[338317758,1726494646053,-151.0,0.00019178,2]
[338317760,1726494646065,-500.0,0.00019178,2]
[338317762,1726494646075,-151.0,0.00019178,2]
[338317764,1726494646084,-500.0,0.00019178,2]
[338317766,1726494646093,-500.0,0.00019178,2]
[338317768,1726494646106,-500.0,0.00019178,2]
[338317770,1726494646115,-561.36,0.00019178,2]
[338317772,1726494646125,-1760.21,0.00019178,2]
[338317774,1726494646134,-1234.36,0.00019178,2]
[338317784,1726494646271,-1406.88,0.00019178,2]
[338317785,1726494646282,-500.0,0.00019178,2]
[338317786,1726494646291,-513.60294144,0.00019178,2]
[338317787,1726494646301,-500.0,0.00019178,2]
[338317788,1726494646313,-1608.62,0.00019178,2]
[338317789,1726494646322,-500.0,0.00019178,2]
[338317790,1726494646331,-500.0,0.00019178,2]
[338317791,1726494646342,-537.83327086,0.00019178,2]
[338317792,1726494646351,-830.15,0.00019178,2]
[338317793,1726494646361,-500.0,0.00019178,2]
[338317794,1726494646370,-558.23307076,0.00019178,2]
[338317795,1726494646379,-500.0,0.00019178,2]
[338317796,1726494646388,-5299.44,0.00019178,2]
[338317797,1726494646398,-500.0,0.00019178,2]
[338317798,1726494646407,-500.0,0.00019178,2]
[338317799,1726494646417,-3757.22,0.00019178,2]
[338317800,1726494646425,-1249.62,0.00019178,2]
[338317801,1726494646435,-334.68496123,0.00019178,2]
[338317802,1726494646444,-671.45,0.00019178,2]
[338317803,1726494646453,-904.52,0.00019178,2]
[338317804,1726494646463,-853.47,0.00019178,2]
[338317805,1726494646472,-500.0,0.00019178,2]
[338317807,1726494646481,-517.97964719,0.00019178,2]
[338317809,1726494646490,-500.0,0.00019178,2]
[338317810,1726494646499,-151.0,0.00019178,2]
[338317811,1726494646508,-151.0,0.00019178,2]
[338317812,1726494646517,-151.0,0.00019178,2]
[338317813,1726494646526,-500.0,0.00019178,2]
[338317814,1726494646535,-566.85796381,0.00019178,2]
[338317815,1726494646545,-500.0,0.00019178,2]
[338317816,1726494646554,-638.77,0.00019178,2]
[338317817,1726494646565,-500.0,0.00019178,2]
[338317818,1726494646574,-500.0,0.00019178,2]
[338317819,1726494646584,-500.0,0.00019178,2]
[338317820,1726494646593,-1690.04,0.00019178,2]
[338317821,1726494646603,-500.0,0.00019178,2]
[338317822,1726494646613,-2331.93,0.00019178,2]
[338317823,1726494646623,-1476.06,0.00019178,2]
[338317824,1726494646632,-500.0,0.00019178,2]
[338317825,1726494646642,-151.0,0.00019178,2]
[338317826,1726494646652,-151.0,0.00019178,2]
[338317827,1726494646662,-2225.75,0.00019178,2]
[338317828,1726494646672,-500.0,0.00019178,2]
[338317829,1726494646681,-452.24913774,0.00019178,2]
[338317830,1726494646690,-500.0,0.00019178,2]
[338317831,1726494646699,-500.0,0.00019178,2]
[338317832,1726494646708,-309.438549,0.00019178,2]
[338317833,1726494646718,-309.438549,0.00019178,2]
[338317834,1726494646727,-529.74,0.00019178,2]
[338317835,1726494646737,-1392.1,0.00019178,2]
[338317836,1726494646746,-500.73823092,0.00019178,2]
[338317837,1726494646756,-309.438549,0.00019178,2]
[338317838,1726494646766,-200.0,0.00019178,2]
[338317839,1726494646775,-528.9,0.00019178,2]
[338317840,1726494646785,-4699.41,0.00019178,2]
[338317841,1726494646794,-500.0,0.00019178,2]
[338317842,1726494646803,-500.0,0.00019178,2]
[338317843,1726494646817,-309.438549,0.00019178,2]
[338317844,1726494646829,-500.0,0.00019178,2]
[338317845,1726494646839,-309.438549,0.00019178,2]
[338317846,1726494646849,-309.438549,0.00019178,2]
[338317847,1726494646859,-500.0,0.00019178,2]
[338317848,1726494646870,-500.0,0.00019178,2]
[338317849,1726494646880,-500.0,0.00019178,2]
[338317850,1726494646890,-502.21503495,0.00019178,2]
[338317851,1726494646902,-500.0,0.00019178,2]
[338317852,1726494646912,-820.21,0.00019178,2]
[338317853,1726494646923,-500.0,0.00019178,2]
[338317854,1726494646933,-1486.21,0.00019178,2]
[338317855,1726494646943,-707.01,0.00019178,2]
[338317856,1726494646954,-500.0,0.00019178,2]
[338317857,1726494646964,-707.01,0.00019178,2]
[338317858,1726494646974,-707.01,0.00019178,2]
[338317859,1726494646985,-707.01,0.00019178,2]
[338317860,1726494646995,-1421.46,0.00019178,2]
[338317861,1726494647005,-707.01,0.00019178,2]
[338317862,1726494647015,-707.01,0.00019178,2]
[338317863,1726494647025,-707.01,0.00019178,2]
[338317864,1726494647035,-707.01,0.00019178,2]
[338317865,1726494647046,-707.01,0.00019178,2]
[338317866,1726494647056,-542.18,0.00019178,2]
[338317867,1726494647069,-707.01,0.00019178,2]
[338317868,1726494647079,-707.01,0.00019178,2]
[338317869,1726494647088,-707.01,0.00019178,2]
[338317870,1726494647098,-534.69,0.00019178,2]
[338317871,1726494647106,-707.01,0.00019178,2]
[338317872,1726494647116,-707.01,0.00019178,2]
[338317873,1726494647126,-707.01,0.00019178,2]
[338317874,1726494647136,-707.01,0.00019178,2]
[338317875,1726494647146,-707.01,0.00019178,2]
[338317876,1726494647156,-707.01,0.00019178,2]
[338317877,1726494647166,-500.0,0.00019178,2]
[338317878,1726494647176,-707.01,0.00019178,2]
[338317879,1726494647186,-707.01,0.00019178,2]
[338317880,1726494647197,-151.0,0.00019178,2]
[338317881,1726494647206,-707.01,0.00019178,2]
[338317882,1726494647216,-151.0,0.00019178,2]
[338317883,1726494647226,-707.01,0.00019178,2]
[338317884,1726494647236,-500.0,0.00019178,2]
[338317885,1726494647246,-707.01,0.00019178,2]
[338317886,1726494647256,-707.12521824,0.00019178,2]
[338317887,1726494647266,-151.0,0.00019178,2]
[338317888,1726494647277,-743.4,0.00019178,2]
[338317889,1726494647286,-500.0,0.00019178,2]
[338317890,1726494647296,-151.0,0.00019178,2]
[338317891,1726494647306,-151.0,0.00019178,2]
[338317892,1726494647319,-500.0,0.00019178,2]
[338317893,1726494647329,-151.0,0.00019178,2]
[338317894,1726494647338,-500.0,0.00019178,2]
[338317895,1726494647348,-547.44,0.00019178,2]
[338317896,1726494647357,-500.0,0.00019178,2]
[338317897,1726494647366,-500.0,0.00019178,2]
[338317898,1726494647376,-500.0,0.00019178,2]
[338317899,1726494647385,-6427.05,0.00019178,2]
[338317900,1726494647395,-500.0,0.00019178,2]
[338317901,1726494647404,-500.0,0.00019178,2]
[338317902,1726494647414,-500.0,0.00019178,2]
[338317903,1726494647424,-1582.62,0.00019178,2]
[338317904,1726494647434,-500.0,0.00019178,2]
[338317905,1726494647444,-527.61396848,0.00019178,2]
[338317906,1726494647454,-1000.39,0.00019178,2]
[338317907,1726494647464,-47570.40834461,0.00019178,2]
[338317908,1726494647760,-13098.70165539,0.00019178,2]
[338317909,1726494647770,-525.08471865,0.00019178,2]
[338317910,1726494647779,-500.0,0.00019178,2]
[338317911,1726494647789,-500.0,0.00019178,2]
[338317912,1726494647798,-500.0,0.00019178,2]
[338317913,1726494647951,-681.04,0.00019178,2]
[338317914,1726494647962,-1393.65,0.00019178,2]
[338317915,1726494647972,-500.0,0.00019178,2]
[338317916,1726494647982,-500.0,0.00019178,2]
[338317917,1726494647991,-500.0,0.00019178,2]
[338317918,1726494648000,-210.13271678,0.00019178,2]
[338317919,1726494648010,-2021.66,0.00019178,2]
[338317920,1726494648020,-1386.71,0.00019178,2]
[338317921,1726494648029,-500.0,0.00019178,2]
[338317922,1726494648039,-500.0,0.00019178,2]
[338317923,1726494648048,-7706.77,0.00019178,2]
[338317924,1726494648058,-500.0,0.00019178,2]
[338317925,1726494648072,-958.35,0.00019178,2]
[338317926,1726494648082,-500.0,0.00019178,2]
[338317927,1726494648093,-1040.18,0.00019178,2]
[338317928,1726494648103,-151.0,0.00019178,2]
[338317929,1726494648115,-151.0,0.00019178,2]
[338317930,1726494648124,-188.6,0.00019178,2]
[338317931,1726494648133,-151.0,0.00019178,2]
[338317932,1726494648143,-151.0,0.00019178,2]
[338317933,1726494648155,-151.0,0.00019178,2]
[338317934,1726494648164,-500.0,0.00019178,2]
[338317935,1726494648174,-4536.41,0.00019178,2]
[338317936,1726494648185,-3774.11,0.00019178,2]
[338317937,1726494648195,-151.0,0.00019178,2]
[338317938,1726494648205,-160.521032,0.00019178,2]
[338317939,1726494648215,-500.0,0.00019178,2]
[338317940,1726494648225,-500.0,0.00019178,2]
[338317941,1726494648235,-5481.64,0.00019178,2]
[338317942,1726494648245,-500.0,0.00019178,2]
[338317943,1726494648255,-1665.99,0.00019178,2]
[338317944,1726494648265,-500.0,0.00019178,2]
[338317945,1726494648275,-500.0,0.00019178,2]
[338317946,1726494648285,-500.0,0.00019178,2]
[338317947,1726494648294,-500.0,0.00019178,2]
[338317948,1726494648304,-2238.28,0.00019178,2]
[338317949,1726494648318,-246.26741315,0.00019178,2]
[338317950,1726494648327,-500.0,0.00019178,2]
[338317951,1726494648337,-500.0,0.00019178,2]
[338317952,1726494648346,-530.13893188,0.00019178,2]
[338317953,1726494648355,-500.0,0.00019178,2]
[338317954,1726494648364,-500.0,0.00019178,2]
[338317955,1726494648373,-500.0,0.00019178,2]
[338317956,1726494648383,-500.0,0.00019178,2]
[338317957,1726494648393,-500.0,0.00019178,2]
[338317958,1726494648403,-604.13,0.00019178,2]
[338317959,1726494648413,-500.0,0.00019178,2]
[338317960,1726494648423,-500.0,0.00019178,2]
[338317961,1726494648432,-500.0,0.00019178,2]
[338317962,1726494648442,-173.33499383,0.00019178,2]
[338317963,1726494648452,-500.0,0.00019178,2]
[338317964,1726494648461,-500.0,0.00019178,2]
[338317965,1726494648471,-500.0,0.00019178,2]
[338317966,1726494648481,-500.0,0.00019178,2]
[338317967,1726494648491,-500.0,0.00019178,2]
[338317968,1726494648502,-500.0,0.00019178,2]
[338317969,1726494648513,-500.0,0.00019178,2]
[338317970,1726494648522,-500.93575281,0.00019178,2]
[338317971,1726494648532,-500.0,0.00019178,2]
[338317972,1726494648541,-500.0,0.00019178,2]
[338317973,1726494648551,-502.22455103,0.00019178,2]
[338317974,1726494648561,-500.0,0.00019178,2]
[338317975,1726494648571,-500.0,0.00019178,2]
[338317976,1726494648580,-500.0,0.00019178,2]
[338317977,1726494648590,-500.0,0.00019178,2]
[338317978,1726494648599,-500.0,0.00019178,2]
[338317979,1726494648608,-500.0,0.00019178,2]
[338317980,1726494648618,-500.0,0.00019178,2]
[338317981,1726494648627,-5726.11,0.00019178,2]
[338317982,1726494648637,-294.74135219,0.00019178,2]
[338317983,1726494648647,-613.74,0.00019178,2]
[338317984,1726494648656,-512.11586287,0.00019178,2]
[338317985,1726494648665,-500.0,0.00019178,2]
[338317986,1726494648675,-503.00755211,0.00019178,2]
[338317987,1726494648684,-500.0,0.00019178,2]
[338317988,1726494648693,-500.0,0.00019178,2]
[338317989,1726494648703,-984.96,0.00019178,2]
[338317990,1726494648712,-207.25630743,0.00019178,2]
[338317991,1726494648722,-500.0,0.00019178,2]
[338317992,1726494648732,-500.0,0.00019178,2]
[338317993,1726494648742,-500.0,0.00019178,2]
[338317994,1726494648751,-500.0,0.00019178,2]
[338317995,1726494648761,-583.66990626,0.00019178,2]
[338317996,1726494648771,-507.29320013,0.00019178,2]
[338317997,1726494648781,-500.0,0.00019178,2]
[338317998,1726494648791,-500.0,0.00019178,2]
[338317999,1726494648800,-500.0,0.00019178,2]
[338318000,1726494648812,-500.0,0.00019178,2]
[338318001,1726494648821,-500.0,0.00019178,2]
[338318002,1726494648830,-1989.45,0.00019178,2]
[338318003,1726494648841,-500.0,0.00019178,2]
[338318004,1726494648850,-500.0,0.00019178,2]
[338318005,1726494648874,-500.0,0.00019178,2]
[338318006,1726494648891,-502.93006318,0.00019178,2]
[338318007,1726494648914,-500.0,0.00019178,2]
[338318008,1726494648935,-501.57964371,0.00019178,2]
[338318009,1726494648955,-500.0,0.00019178,2]
[338318010,1726494648974,-500.0,0.00019178,2]
[338318011,1726494648991,-500.0,0.00019178,2]
[338318012,1726494649008,-500.0,0.00019178,2]
[338318013,1726494649029,-500.0,0.00019178,2]
[338318014,1726494649052,-500.0,0.00019178,2]
[338318015,1726494649068,-585.71,0.00019178,2]
[338318016,1726494649088,-500.0,0.00019178,2]
[338318017,1726494649107,-500.0,0.00019178,2]
[338318018,1726494649124,-500.0,0.00019178,2]
[338318019,1726494649138,-500.0,0.00019178,2]
[338318020,1726494649153,-500.0,0.00019178,2]
[338318021,1726494649173,-500.0,0.00019178,2]
[338318022,1726494649189,-500.0,0.00019178,2]
[338318023,1726494649205,-500.0,0.00019178,2]
[338318024,1726494649220,-500.0,0.00019178,2]
[338318025,1726494649235,-500.0,0.00019178,2]
[338318026,1726494649251,-500.0,0.00019178,2]
[338318027,1726494649267,-500.0,0.00019178,2]
[338318028,1726494649283,-500.0,0.00019178,2]
[338318029,1726494649299,-500.0,0.00019178,2]
[338318030,1726494649316,-316.35027391,0.00019178,2]
[338318031,1726494649330,-616.91,0.00019178,2]
[338318032,1726494649345,-500.0,0.00019178,2]
[338318033,1726494649361,-500.0,0.00019178,2]
[338318034,1726494649377,-500.0,0.00019178,2]
[338318035,1726494649392,-500.0,0.00019178,2]